Cogmind - Beta 17.1 @@@ ROGUE MODE // 2026.09.08 @ 21:54:19 Player: TheSkyeDoctor Result: Destroyed by S-27 Virus with Autogun Performance ------------- Evolutions (4) 2000 Regions Visited (6) 1200 Robots Destroyed (51) 255 Value Destroyed (1569) 1569 Prototype IDs (9) 180 Alien Tech Used (0) 0 Bonus (800) 800 TOTAL SCORE: 6004 Bonus ------- Registered with UFD 300 Met Optimus in HQ 500 Cogmind --------- Core Integrity 0/850 Matter 30/300 Energy 99/100 System Corruption 17% Temperature Cool (0) Movement Core (50) Location -6/Factory Parts ------- > --- POWER (1) -------- (None) > --- PROPULSION (4) --- (None) > --- UTILITY (6) ------ Advanced Melee Analysis Suite Core Analyzer Microactuators Hacking Suite > --- WEAPON (4) ------- (None) > --- INVENTORY (5) ---- Improved Gravmag System Improved Gravmag System Improved Reaction Control System Missile Launcher Missile Launcher Peak State ------------ > --- POWER ------------ Micro Nuclear Core > --- PROPULSION ------- Carbon-fiber Leg Carbon-fiber Leg Carbon-fiber Leg Flexi-carbon Leg > --- UTILITY ---------- Improved Heat Sink Advanced Heat Sink Large Storage Unit Advanced Melee Analysis Suite Powered Armor Hacking Suite > --- WEAPON ----------- Coil Gun Heavy Machine Gun Heavy Machine Gun Powered Hammer > --- INVENTORY -------- Angular Momentum Engine Armored Huge Wheel High-capacity Matter Pod Improved Terrain Scanner Compact HERF Cannon Heavy Machine Gun Missile Launcher Missile Launcher Missile Launcher Missile Launcher Datajack Vortex Trap [Rating: 62] Favorites ----------- Power Improved Deuterium Engine Engine Improved Deuterium Engine Power Core Micro Nuclear Core Propulsion Aluminum Leg Leg Aluminum Leg Wheel Armored Huge Wheel Hover Unit Improved Gravmag System Utility Large Storage Unit Device Thermal Shield Storage Large Storage Unit Processor Advanced Targeting Computer Hackware Hacking Suite Protection Powered Armor Weapon Heavy Machine Gun Energy Gun Plasma Rifle Energy Cannon Compact HERF Cannon Ballistic Gun Heavy Machine Gun Launcher Grenade Launcher Impact Weapon Powered Hammer Build | -11 -10 -10 -9 -6 -6 -6 ------- Run | Yrd Mat Sub Scr Fac Was Fac Slots Evolved 8 | . . . . 8 . . Power . | . . . . . . . Propulsion 2 | . . . . 2 . . Utility 4 | . . . . 4 . . Weapon 2 | . . . . 2 . . Parts Attached 53 | 7 2 1 7 28 1 7 Power 5 | 1 1 . 1 1 . 1 Engine 4 | 1 1 . 1 . . 1 Core 1 | . . . . 1 . . Reactor . | . . . . . . . Propulsion 16 | 2 1 . 1 7 1 4 Treads . | . . . . . . . Leg 11 | 2 1 . 1 6 1 . Wheel 1 | . . . . 1 . . Hover 4 | . . . . . . 4 Flight . | . . . . . . . Utility 16 | 2 . . 2 10 . 2 Device 6 | 1 . . 1 3 . 1 Storage 2 | 1 . . 1 . . . Processor 3 | . . . . 2 . 1 Hackware 2 | . . . . 2 . . Protection 3 | . . . . 3 . . Artifact . | . . . . . . . Weapon 16 | 2 . 1 3 10 . . Energy Gun 3 | 1 . . 1 1 . . Energy Cannon 2 | . . . . 2 . . Ballistic Gun 8 | 1 . . 2 5 . . Ballistic Cannon . | . . . . . . . Launcher 2 | . . 1 . 1 . . Special Weapon . | . . . . . . . Impact Weapon 1 | . . . . 1 . . Slashing Weapon . | . . . . . . . Piercing Weapon . | . . . . . . . Special Melee Weapon . | . . . . . . . Unidentified Prototypes 2 | . . . . 2 . . Corrupted Parts 1 | . . . . 1 . . System Corruption 2 | . . . . 2 . . Parts Lost 26 | . 1 1 . 14 5 5 Power 4 | . 1 . . 1 1 1 Propulsion 8 | . . . . 2 2 4 Utility 8 | . . 1 . 5 2 . Weapon 6 | . . . . 6 . . Highest Loss Streak 5 | . 1 1 . 5 5 5 To Critical Strikes . | . . . . . . . Average Backups 9 | . 5 6 9 12 8 4 Power . | . . . . . . . Propulsion . | . 1 2 1 . . 1 Utility 2 | . 1 2 3 3 1 . Weapon 4 | . . 1 2 7 5 2 Tool/Special . | . . . . . . . Unused Backups 14 | . . . 2 1 5 6 Power 1 | . . . . . 1 . Propulsion 3 | . . . 1 . . 2 Utility 4 | . . . 1 . 2 1 Weapon 5 | . . . . 1 1 3 Tool/Special 1 | . . . . . 1 . Average Slot Usage (%) 85 | . 99 93 98 79 65 49 Engine 7 | . 13 14 14 3 . 3 Core 1 | . . . . 2 4 . Leg 19 | . 28 28 28 15 14 . Hover 1 | . . . . . . 19 Device 12 | . 14 8 13 12 7 5 Storage 9 | . 14 14 14 6 3 . Processor 2 | . . . . 4 6 12 Hackware 3 | . . . . 5 6 6 Energy Gun 8 | . 14 9 12 6 . . Energy Cannon 1 | . . . . 4 . . Ballistic Gun 10 | . 14 14 15 8 12 . Impact Weapon 2 | . . . . 4 4 . Peak Build Rating 62 | 7 8 8 25 61 62 43 Average Rating 34 | 5 7 7 19 52 40 35 On Entrance 16 | . 7 8 6 25 59 9 Avg Prop Armor Cover (%) 9 | . . . . 6 . 16 Naked Turns . | . . . . . . . Heaviest Build 66 | 15 15 15 40 66 56 11 Greatest Support 65 | 20 20 20 20 50 65 40 Greatest Overweight (x) 16 | 1 . . 1 16 3 . Average Overweight (x) . | . . . . 1 . . Largest Inventory Capacity 15 | 8 8 8 15 15 15 5 Average Capacity 12 | 7 8 8 10 15 11 5 Most Carried 15 | 2 7 8 15 15 14 5 Average Carried 11 | . 5 6 9 14 10 4 Final Capacity 15 | 8 8 8 15 15 5 5 Final Carried 15 | 2 6 8 15 14 5 5 Scrap Suit Usage (%) 39 | . . . . 83 . . Parts Cannibalized 11 | . . . . 11 . . Class Distribution -------------------- 55% | Mutant 23% | Gunner 10% | Scavenger-Gunner 5% | Tank 4% | Scavenger-Tank Dominant Class ---------------- Mutant | -10/Materials Mutant | -10/Subcaves Mutant | -9/Scraptown Gunner | -6/Factory Mutant | -6/Waste Mutant | -6/Factory Resources | -11 -10 -10 -9 -6 -6 -6 ----------- Run | Yrd Mat Sub Scr Fac Was Fac Matter Collected 1366 | 298 86 42 77 848 . 15 Remotely . | . . . . . . . Salvage Created 1862 | 130 275 94 . 1363 . . Parts 122 | 11 23 10 . 78 . . Haulers Intercepted . | . . . . . . . Recyclers Shooed 1 | . . . . 1 . . Parts Field Recycled . | . . . . . . . Retrieved Matter . | . . . . . . . Parts Self-Destructed 16 | . . 16 . . . . Prevented . | . . . . . . . Parts Restored . | . . . . . . . Kills | -11 -10 -10 -9 -6 -6 -6 ------- Run | Yrd Mat Sub Scr Fac Was Fac Combat Hostiles Destroyed 40 | . 8 3 . 29 . . Guns 29 | . 8 3 . 18 . . Cannons 6 | . . . . 6 . . AOE 3 | . . . . 3 . . Classes Destroyed 12 | 2 3 . . 7 . . Worker 2 | . . . . 2 . . Builder 1 | . . . . 1 . . Tunneler 2 | 2 . . . . . . Recycler 2 | 1 . . . 1 . . Mechanic 1 | . . . . 1 . . Operator 1 | . 1 . . . . . Watcher 2 | . . . . 2 . . Swarmer 20 | . 3 3 . 14 . . Grunt 12 | . 5 . . 7 . . Sentry 4 | . . . . 4 . . Hunter 1 | . . . . 1 . . Programmer 3 | . . . . 3 . . Best Kill Streak 7 | 3 7 3 . 6 . . Combat Bots Only 7 | . 7 3 . 5 . . Max Kills in Single Turn 5 | 1 1 2 . 5 . . Gunslinging 1 | . . 1 . . . . Exploded 2 | . . . . 2 . . Melee . | . . . . . . . Uniques/NPCs Destroyed . | . . . . . . . Combat | -11 -10 -10 -9 -6 -6 -6 -------- Run | Yrd Mat Sub Scr Fac Was Fac Hostile Shots Fired 549 | . 32 11 . 391 4 111 Missed 209 | . 11 1 . 135 . 62 Hits 340 | . 21 10 . 256 4 49 Melee 4 | . . . . . 4 . Projectile 336 | . 21 10 . 256 . 49 Part Disruptions 1 | . . . . 1 . . Damage Taken 4432 | . 263 110 . 3257 174 628 Core 903 | . 31 18 . 408 152 294 Absorbed by Shields . | . . . . . . . Ignored by Resistances 104 | . . . . 104 . . Regen/Repaired (Parts) 93 | . . . . 93 . . Core Remaining (%) 90 | 100 . . 80 . . . Volleys Fired 117 | 6 23 22 . 62 4 . Largest 3 | 2 2 2 . 3 3 . Hottest 219 | 60 60 60 . 219 90 . Shots Fired 261 | 12 46 31 . 160 12 . Gun 224 | 12 46 30 . 124 12 . Cannon 33 | . . . . 33 . . Launcher 4 | . . 1 . 3 . . Special . | . . . . . . . Kinetic 154 | 6 23 22 . 91 12 . Thermal 28 | . . . . 28 . . Explosive 4 | . . 1 . 3 . . Electromagnetic 75 | 6 23 8 . 38 . . Robot Hit Streak 19 | 4 10 14 . 19 5 . Robot Miss Streak 7 | 1 3 2 . 7 2 . Penetration Max . | . . . . . . . Secondary Targets 4 | . 1 1 . 2 . . Max Gunslinging Chain 1 | . 1 1 . 1 . . Shots Hit Robots 164 | 8 29 17 . 101 9 . Core Hits 78 | 4 15 6 . 52 1 . Critical Kills 1 | . 1 . . . . . Critical Parts Destroyed 4 | . . 1 . 3 . . Critical Strikes 6 | . 1 1 . 4 . . Burn 1 | . . . . 1 . . Destroy 3 | . 1 1 . 1 . . Smash 2 | . . . . 2 . . Melee Attacks 34 | . . . . 34 . . Impact 34 | . . . . 34 . . Slashing . | . . . . . . . Piercing . | . . . . . . . Sneak Attacks 2 | . . . . 2 . . Combat Hostiles . | . . . . . . . Follow-up Attacks . | . . . . . . . Damage Inflicted 4263 | 103 414 212 . 3258 252 24 Guns 2518 | 103 386 212 . 1565 252 . Cannons 710 | . . . . 710 . . Explosions 436 | . 28 . . 408 . . Melee 575 | . . . . 575 . . Ramming 24 | . . . . . . 24 Kinetic 1772 | 58 171 190 . 1101 252 . Thermal 563 | . 28 . . 535 . . Explosive 285 | . . . . 285 . . Electromagnetic 1044 | 45 215 22 . 762 . . Impact 575 | . . . . 575 . . Slashing . | . . . . . . . Piercing . | . . . . . . . Highest Corruption 17 | . . . . 3 17 17 Average Corruption 4 | . . . . 2 7 17 Corruption Purged . | . . . . . . . Corruption Blocked . | . . . . . . . Effects 52 | . . . . 31 5 16 Message Errors 7 | . . . . 6 . 1 Matter Fused 13 | . . . . 6 2 5 Heat Flow Errors 4 | . . . . 3 . 1 Energy Discharges 7 | . . . . 6 . 1 Parts Rejected 3 | . . . . . 2 1 Parts Fused 1 | . . . . 1 . . Data Loss (minor) 7 | . . . . 3 . 4 Data Loss (major) 3 | . . . . 1 1 1 Misfires 2 | . . . . 2 . . Alerts 3 | . . . . 2 . 1 Misdirections 1 | . . . . . . 1 Weapon Failures 1 | . . . . 1 . . Overload Shots . | . . . . . . . Overflow Damage 276 | . 11 . . 265 . . Projectiles 11 | . . . . 11 . . Explosions 19 | . 11 . . 8 . . Melee 246 | . . . . 246 . . Knockbacks 1 | . . . . 1 . . Impact 1 | . . . . 1 . . Kinetic . | . . . . . . . Secondary . | . . . . . . . Self-Inflicted Damage 52 | . 30 . . 10 . 12 Shots 2 | . 1 . . 1 . . Rammed 1 | . . . . . . 1 Targets Rammed 1 | . . . . . . 1 Kicked . | . . . . . . . Crushed . | . . . . . . . Highest Temperature 262 | . 84 . . 148 . 262 Average Temperature 51 | . 49 . . 44 . 132 Received Heat Transfer 744 | . 102 . . 579 . 63 Siege Activations . | . . . . . . . Martial Activations . | . . . . . . . Shielding Activations . | . . . . . . . Robots Disrupted . | . . . . . . . Combat Hostiles . | . . . . . . . Robots Corrupted 2 | . . . . 2 . . Combat Hostiles 2 | . . . . 2 . . Parts Fried 4 | 1 . . . 3 . . Impact Corruptions 7 | . . . . 7 . . Robots Melted . | . . . . . . . Combat Hostiles . | . . . . . . . Parts Melted 1 | . . . . 1 . . Heat Transferred 1053 | . 50 . . 1003 . . Parts Sabotaged . | . . . . . . . Parts Stolen . | . . . . . . . Parts Stripped . | . . . . . . . Power Chain Reactions 2 | . 1 . . 1 . . Alert | -11 -10 -10 -9 -6 -6 -6 ------- Run | Yrd Mat Sub Scr Fac Was Fac Maximum Alert Level 1 | . . . . 1 . . Low Security (%) 76 | 100 100 . . 69 100 100 Level 1 23 | . . . . 30 . . Level 2 . | . . . . . . . Level 3 . | . . . . . . . Level 4 . | . . . . . . . Level 5 . | . . . . . . . High Security . | . . . . . . . Max Security . | . . . . . . . Peak Influence 399 | 10 141 . . 399 131 30 Initial 131 | . . . . . 131 14 Average 137 | 1 54 . . 168 86 5 Influence Increases 1303 | 15 206 70 . 927 . 85 Destroy 0b10 Robot/C 800 | . 160 60 . 580 . . Destroy 0b10 Robot/NC 55 | 15 5 . . 35 . . Destroy Leader 174 | . 30 10 . 134 . . Trap Triggered on 0b10 20 | . . . . 10 . 10 Successful Hack 17 | . 5 . . 12 . . Disable Machine 30 | . . . . 30 . . Destroy Structure 57 | . 6 . . 51 . . Partial Spotted 15 | . . . . . . 15 Lose Combat Pursuer 135 | . . . . 75 . 60 Influence Decreases 1303 | 15 90 186 . 550 356 106 Entered New Map 309 | . . 56 . . 246 7 Time Decay 764 | 15 80 130 . 410 60 69 Lost Part 230 | . 10 . . 140 50 30 Squads Dispatched 11 | . 1 . . 8 . 2 Investigation 5 | . . . . 3 . 2 Extermination 4 | . . . . 4 . . Reinforcement 1 | . 1 . . . . . Assault . | . . . . . . . Garrison 1 | . . . . 1 . . Intercept . | . . . . . . . Searches Triggered . | . . . . . . . Construction Impeded . | . . . . . . . Haulers Reinforced . | . . . . . . . Active Scanning Responses . | . . . . . . . Cargo Convoy Interrupts . | . . . . . . . Stealth | -11 -10 -10 -9 -6 -6 -6 --------- Run | Yrd Mat Sub Scr Fac Was Fac Distress Signals 5 | . 3 . . 2 . . Communications Jammed . | . . . . . . . Distress Signals . | . . . . . . . Times Spotted 82 | . 12 6 . 47 6 11 Peak Tracking Total 7 | . 7 4 . 6 6 6 Tactical Retreats 8 | . . 1 . 4 . 3 Traps | -11 -10 -10 -9 -6 -6 -6 ------- Run | Yrd Mat Sub Scr Fac Was Fac Traps Triggered 5 | . . . . 4 . 1 Indirectly . | . . . . . . . Trap Hack Attempts . | . . . . . . . Triggered . | . . . . . . . Disarmed . | . . . . . . . Reprogrammed . | . . . . . . . Reused 2 | . . . . 1 . 1 Traps Extracted . | . . . . . . . Installed 2 | . . . . 1 . 1 Triggered 2 | . . . . 1 . 1 Most Traps Carried 2 | . . . 2 2 1 1 Machines | -11 -10 -10 -9 -6 -6 -6 ---------- Run | Yrd Mat Sub Scr Fac Was Fac Machines Disabled 2 | . . . . 2 . . Max in Single Turn 1 | . . . . 1 . . Garrison Access 2 | . . . . 2 . . Machines Repaired . | . . . . . . . Machines Dismantled . | . . . . . . . Machines Sabotaged . | . . . . . . . Overloaded Fab Kills . | . . . . . . . Hacking | -11 -10 -10 -9 -6 -6 -6 --------- Run | Yrd Mat Sub Scr Fac Was Fac Machines Accessed 17 | . 4 . 2 9 . 2 Terminals 5 | . 4 . . 1 . . Fabricators 1 | . . . . 1 . . Repair Stations . | . . . . . . . Recycling Units 6 | . . . . 4 . 2 Scanalyzers . | . . . . . . . Garrison Access 3 | . . . . 3 . . Total Hacks 26 | . 8 . 2 13 . 3 Successful 14 | . 3 . 2 6 . 3 Failed 12 | . 5 . . 7 . . Catastrophic 4 | . 1 . . 3 . . Database Lockouts . | . . . . . . . Manual 14 | . 6 . . 6 . 2 Terminals 9 | . 8 . . 1 . . Fabricators 1 | . . . . 1 . . Repair Stations . | . . . . . . . Recycling Units 8 | . . . . 5 . 3 Scanalyzers . | . . . . . . . Garrison Access 6 | . . . . 6 . . Terminal Hacks 2 | . . . 2 . . . Record 1 | . . . 1 . . . Proto ID Catalog 1 | . . . 1 . . . Fabricator Hacks 1 | . . . . 1 . . Build 1 | . . . . 1 . . Repair Station Hacks . | . . . . . . . Recycling Unit Hacks 1 | . . . . . . 1 Retrieve Matter 1 | . . . . . . 1 Scanalyzer . | . . . . . . . Garrison Access Hacks 2 | . . . . 2 . . Seal Access 2 | . . . . 2 . . Unauthorized Hacks 8 | . 3 . . 3 . 2 Terminals 3 | . 3 . . . . . Botnet 3 | . 3 . . . . . Fabricators . | . . . . . . . Repair Stations . | . . . . . . . Recycling Units 5 | . . . . 3 . 2 Fedlink 5 | . . . . 3 . 2 Scanalyzers . | . . . . . . . Garrison Access . | . . . . . . . Data Cores Recovered 1 | . 1 . . . . . Used . | . . . . . . . Hacking Detections 6 | . 2 . . 4 . . Full Trace Events . | . . . . . . . Feedback Events . | . . . . . . . Feedback Blocked . | . . . . . . . Robot Schematics Acquired . | . . . . . . . Robots Built . | . . . . . . . Authchips . | . . . . . . . Time . | . . . . . . . Total Robot Build Rating . | . . . . . . . Part Schematics Acquired . | . . . . . . . Parts Built 1 | . . . . 1 . . Authchips . | . . . . . . . Time 64 | . . . . 64 . . Total Part Build Rating 8 | . . . . 8 . . Part Studies Acquired . | . . . . . . . Parts Repaired . | . . . . . . . Time . | . . . . . . . Parts Recycled . | . . . . . . . Recycled Matter . | . . . . . . . Retrieved Matter . | . . . . . . . Retrieved Components . | . . . . . . . Parts Scanalyzed . | . . . . . . . Part Schematics Acquired . | . . . . . . . Parts Damaged . | . . . . . . . Bothacking | -11 -10 -10 -9 -6 -6 -6 ------------ Run | Yrd Mat Sub Scr Fac Was Fac Used RIF Installer . | . . . . . . . Robots Hacked . | . . . . . . . Non-combat . | . . . . . . . Combat . | . . . . . . . Robot Hacks Applied . | . . . . . . . Relay Couplers Released 4 | . . . . 4 . . Machine Destruction 4 | . . . . 4 . . Fabnet Peak Effective % . | . . . . . . . Robots Rewired . | . . . . . . . Allies Hacked . | . . . . . . . Hacks Repelled . | . . . . . . . Allies | -11 -10 -10 -9 -6 -6 -6 -------- Run | Yrd Mat Sub Scr Fac Was Fac Total Allies . | . . . . . . . Largest Group . | . . . . . . . Highest-Rated Group . | . . . . . . . Highest-Rated Ally . | . . . . . . . Initial UFD Resources 39 | . . . . 23 39 39 Total Orders . | . . . . . . . Ally Attacks . | . . . . . . . Total Damage . | . . . . . . . Kills . | . . . . . . . Allies Corrupted . | . . . . . . . Allies Melted . | . . . . . . . Intel | -11 -10 -10 -9 -6 -6 -6 ------- Run | Yrd Mat Sub Scr Fac Was Fac Active Infowar (turns) 627 | 16 291 320 . . . . Seismic 627 | 16 291 320 . . . . Robot Analysis Total . | . . . . . . . Derelict Logs Recovered 1 | . . . 1 . . . Drone Launches . | . . . . . . . Drone Recoveries . | . . . . . . . Exploration | -11 -10 -10 -9 -6 -6 -6 ------------- Run | Yrd Mat Sub Scr Fac Was Fac Turns Passed 5681 | 116 291 508 1611 2733 122 300 Spaces Moved 3236 | 76 144 367 1066 978 114 491 Core 194 | 12 . . . 5 69 108 Treads . | . . . . . . . Legs 2529 | 64 144 367 1066 845 43 . Wheels 130 | . . . . 128 2 . Hover 383 | . . . . . . 383 Flight . | . . . . . . . Fastest Speed 48 | 50 120 120 120 115 50 48 Average Speed 148 | 111 120 120 148 223 91 49 Slowest Speed 850 | 120 120 120 190 850 200 60 Overloaded Moves . | . . . . . . . Propulsion Burnouts . | . . . . . . . Robots Hopped . | . . . . . . . Potential Cave-ins . | . . . . . . . Cave-ins Triggered . | . . . . . . . Exploration Rate (%) 34 | 4 29 17 82 22 75 14 Regions Visited 6 Branch Regions 2 Pre-discovered Areas 1 | . . . . 1 . . Known Exits Taken . | . . . . . . . Unknown Exits Taken 4 | 1 1 1 1 . . . Scrap Searched 2 | . . . 2 . . . Spaces Dug 16 | . . . . 16 . . Terrain Destroyed 65 | . 4 8 . 53 . . Melee 16 | . . . . 16 . . Projectile . | . . . . . . . AOE 49 | . 4 8 . 37 . . Terrain Rammed . | . . . . . . . Walls Destroyed . | . . . . . . . Machines Disabled . | . . . . . . . Actions | -11 -10 -10 -9 -6 -6 -6 --------- Run | Yrd Mat Sub Scr Fac Was Fac Total 3820 | 92 215 405 1097 1341 123 547 Wait 304 | . 43 7 . 215 1 38 Move 3231 | 75 143 366 1065 978 113 491 Hop . | . . . . . . . Pick Up 35 | 2 4 4 13 9 . 3 Fast Attach 41 | 7 . 1 4 20 1 8 Attach 13 | 1 1 . . 9 2 . Detach 7 | 1 . . 1 3 2 . Swap 10 | . 1 1 3 5 . . Drop 23 | . . 4 11 5 . 3 Fire 117 | 6 23 22 . 62 4 . Melee 34 | . . . . 34 . . Ram 1 | . . . . . . 1 Kick . | . . . . . . . Crush . | . . . . . . . Escape Stasis 2 | . . . . . . 2 Rewire . | . . . . . . . Trap 2 | . . . . 1 . 1 Miscellaneous . | . . . . . . . Route ------- -11/Scrapyard -10/Materials -10/Subcaves (discovered 3 exits: [*Mat x2] / *Scr) -9/Scraptown (discovered 2 exits: *Fac x2) -6/Factory -6/Waste -6/Factory History --------- Turn | Location | Event 14 | -11/Scrapyard | Discovered new exit (range 15) 117 | -11/Scrapyard | Entered Materials 311 | -10/Materials | Build established: Mutant 327 | -10/Materials | Destroyed 7 combat bots 402 | -10/Materials | Discovered new exit (range 3) 408 | -10/Materials | Entered Subcaves 408 | -10/Subcaves | Discovered new exit (range 3) 408 | -10/Subcaves | Discovered new exit (range 16) 409 | -10/Subcaves | Approached by a straggling Scientist 420 | -10/Subcaves | Shifting Twisted Machinery released Sub. Monowheel 421 | -10/Subcaves | Shifting Twisted Machinery released Mak. Thermal Plating 516 | -10/Subcaves | Scientist uncovered a shortcut to Scraptown 617 | -10/Subcaves | A swath of the cavern ceiling suddenly collapsed 916 | -10/Subcaves | Entered Scraptown 1256 | -9/Scraptown | Scanned Subdweller tech in exchange for log data 1260 | -9/Scraptown | Learned Factory stockpile data 1273 | -9/Scraptown | Discovered new exit (range 11) 1447 | -9/Scraptown | Visited UFD Registry 1483 | -9/Scraptown | Visited Cave Peace 1490 | -9/Scraptown | Visited Shadow of the Wyrm 1501 | -9/Scraptown | Visited Spacefarers 1519 | -9/Scraptown | Visited Comm Corps 1544 | -9/Scraptown | Visited Assassins FH 1579 | -9/Scraptown | Registered with UFD as "Gunkit" 1613 | -9/Scraptown | Visited Abandonware Association 1660 | -9/Scraptown | Visited Junk Repository 1722 | -9/Scraptown | Visited Junk Repository 1946 | -9/Scraptown | Visited Supply Room 2004 | -9/Scraptown | Visited Derelict Rescue Squad 2021 | -9/Scraptown | Visited Curators Association 2101 | -9/Scraptown | Visited Scrapoid Research Area 2150 | -9/Scraptown | Visited Science Guys 2236 | -9/Scraptown | Visited Observation Area 2372 | -9/Scraptown | Met Optimus 2372 | -9/Scraptown | Accepted into 0bPrime 2485 | -9/Scraptown | Found Scrap Suit 2519 | -9/Scraptown | Discovered new exit (range 3) 2527 | -9/Scraptown | Entered Factory 2527 | -6/Factory | Evolved 8 slots: Propulsion x2, Utility x4, Weapon x2 2689 | -6/Factory | Fabricated Com. HERF Cannon (x1) 2868 | -6/Factory | Build established: Gunner 3078 | -6/Factory | Loaded intel: 8 recycling unit locations 3130 | -6/Factory | Learned location of Protoforge (-3) 3704 | -6/Factory | Build established: Scavenger-Gunner 4165 | -6/Factory | Lost 5 parts (1p1n2u1w) 4189 | -6/Factory | Build established: Gunner 4380 | -6/Factory | Found Powered Armor 4386 | -6/Factory | Found Powered Armor 4400 | -6/Factory | Found Powered Armor 4551 | -6/Factory | Garrison activated, responded to threat 4949 | -6/Factory | Lost 3 parts (1u2w) 5260 | -6/Factory | Sucked down chute 5260 | -6/Factory | Entered Waste 5275 | -6/Waste | EMP discharged 5285 | -6/Waste | Spotted C-40 Crusher 5310 | -6/Waste | Crushed by Compactor (1 part destroyed, 2 dropped) 5310 | -6/Waste | Spotted C-40 Crusher 5311 | -6/Waste | Core integrity fell below 50% 5317 | -6/Waste | Spotted C-40 Crusher 5317 | -6/Waste | Spotted C-40 Crusher 5318 | -6/Waste | Spotted C-40 Crusher 5319 | -6/Waste | Spotted C-40 Crusher 5331 | -6/Waste | Crushed by Compactor (1 part destroyed, 1 dropped) 5337 | -6/Waste | Crushed by Compactor (1 part destroyed, 2 dropped) 5351 | -6/Waste | Crushed by Compactor (1 part destroyed, 1 dropped) 5375 | -6/Waste | EMP discharged 5375 | -6/Waste | System corruption reached 10% 5376 | -6/Waste | Discovered new exit (range 13) 5382 | -6/Waste | Lost 5 parts (1p2n2u) 5382 | -6/Waste | Entered Factory 5395 | -6/Factory | Loaded intel: 8 recycling unit locations 5602 | -6/Factory | Build established: Mutant 5641 | -6/Factory | Core integrity fell below 20% 5682 | -6/Factory | Destroyed by S-27 Virus with Autogun Last Messages --------------- 05590_ System corrupted: Component data lost. 05591_ K-01 Serf cleans the Recycling Unit. 05597_ C-30 ARC bursts open, deploying its payload. 05597_ S-27 Virus unfolds itself. 05615_ System corrupted: Matter fused (-2). 05632_ Imp. Gravmag System destroyed. 05637_ System corrupted: IFF burst signal emitted. 05643_ Slammed into S-27 Virus. 05648_ Lgt. Angular Momentum Engine destroyed. 05650_ Imp. Gravmag System destroyed. 05656_ System corrupted: Imp. Gravmag System rejected. 05656_ Acquired Imp. Gravmag System. 05659_ Imp. Gravmag System destroyed. 05666_ U-05 Engineer destroyed. 05667_ Acquired 15 matter. 05675_ System corrupted: Matter fused (-5). 05676_ Imp. Gravmag System destroyed. Map ----- +----------------------------------------------------+ | ?????????????????????????????????????????????????? | | ?????????????????????????????????????????????????? | | ?????????????????????????????????????????????????? | | ?????????????????????????????????????????????????? | | ?????????????????????????????????????????????????? | | ?????????????????????????????????????????????????? | | ?????????????????????????????????????????????????? | | ?????????????????????????????????????????????????? | | ?????????????????????????????????????????????????? | | ?????????????????????????????????????????????????? | | ?????????????????????????????????????????????????? | | ?????????????????????????????????????????????????? | | ?????????????????????????????????????????????????? | | ?????????????????????????????????????????????????? | | ?????????????????????????????????????????????????? | | ?????????????????????????????????????????????????? | | ?????????????????????????????????????????????????? | | ?????????????????????????????????????????????????? | | ?????????###########?????????????????????????????? | | #####+#### #?????????????????????????????? | | ##########+#########??????????? | | ?????????? | | ?????????? | | T ????????? | | ????????? | | * sAs @ ????????? | | s s ####### ###???????????????? | | #####/#### #?????? #?????????????????? | | # ###########??????? #?????????????????? | | # #????????????????? +?????????????????? | | # #?????????????????? #?????????????????? | | # #?????????????????? #?????????????????? | | " #??????????????????? #?????????????????? | | # #??????????????????? #?????????????????? | | # #???????????????????? #?????????????????? | | # #???????????????????? #?????????????????? | | # #?????????????????????#?????????????????? | | # #???????????????????????????????????????? | | # #???????????????????????????????????????? | | # #???????????????????????????????????????? | | # #???????????????????????????????????????? | | # #???????????????????????????????????????? | | # #???????????????????????????????????????? | | # #???????????????????????????????????????? | | # #???????????????????????????????????????? | | # #???????????????????????????????????????? | | ?#########???????????????????????????????????????? | | ?????????????????????????????????????????????????? | | ?????????????????????????????????????????????????? | | ?????????????????????????????????????????????????? | +----------------------------------------------------+ Best States ------------- Heat Dissipation 70 Energy Generation 18 Energy Capacity 290 Matter Stores 300 Matter Capacity 300 Sight Range 16 Terrain Scan Density 10 Armor Coverage 800 Resistance: TH 20 Melee Speed Boost 20 Evasion (%) 55 Targeting Accuracy 8 Melee Accuracy 8 Core Analysis 6 Offensive Hacking 10 Item Schematics ----------------- None Robot Schematics ------------------ None Fabricated ------------ Com. HERF Cannon | x1 | -6/Factory | Preloaded Repaired ---------- Nothing Studied --------- None Alien Tech Used ----------------- None Achievements -------------- None Challenges ------------ None Game ------ Seed FlyingThermicCape Manual? 0 Play Time 00:32:49 Cumulative 202.5 hours Start 2026.09.08 @ 21:21:41 End 2026.09.08 @ 21:54:19 Sessions 1 Manual Loads 0 Difficulty Rogue Special Mode None Game No. 395 Rogue 395 Adventurer 0 Explorer 0 Win Type - Total 2 Types 2/0/0/0/0/0/0/0/0/0 Lore% 61 Gallery% 62 Achievement% 48 Wizard Run 0 Options --------- Layout 2 ASCII 0 Keyboard 1 Movement Arrows Keybinds 0 Fullscreen 1 Font 24/Smallcaps Map View 50x44 Zoom Use 0% Tactical HUD 1 Map Filters NONE Filters NONE Steam 1 RUN: a221865d-8f81-4377-84e3-f649f3a4f43b